[Event "Titled Tuesday Blitz August 10 2021"]
[White "Indjic, Aleksandar"]
[Black "Dronavalli, Harika"]
[WhiteFideId "911925"]
[BlackFideId "5015197"]
[WhiteElo "2643"]
[BlackElo "2422"]
[Result "1-0"]
[Round "09"]
[TimeControl "180+1"]
[Date "2021.08.10"]
[WhiteClock "0:02:02"]
[BlackClock "0:01:45"]

1. d4 {[%clk 0:03:00]}  Nf6 {[%clk 0:02:59]} 2. c4 {[%clk 0:03:00]}  g6 {[%clk 0:02:59]} 3. Nc3 {[%clk 0:03:00]}  d5 {[%clk 0:02:59]} 4. Nf3 {[%clk 0:03:00]}  Bg7 {[%clk 0:02:59]} 5. Qb3 {[%clk 0:03:00]}  dxc4 {[%clk 0:02:57]} 6. Qxc4 {[%clk 0:03:01]}  O-O {[%clk 0:02:57]} 7. e4 {[%clk 0:03:01]}  Nc6 {[%clk 0:02:53]} 8. Be3 {[%clk 0:02:57]}  Ng4 {[%clk 0:02:41]} 9. e5 {[%clk 0:02:56]}  Nxe3 {[%clk 0:02:40]} 10. fxe3 {[%clk 0:02:57]}  Bg4 {[%clk 0:02:33]} 11. h4 {[%clk 0:02:54]}  Bxf3 {[%clk 0:02:27]} 12. gxf3 {[%clk 0:02:53]}  h5 {[%clk 0:02:22]} 13. f4 {[%clk 0:02:52]}  e6 {[%clk 0:02:21]} 14. d5 {[%clk 0:02:43]}  exd5 {[%clk 0:02:17]} 15. Nxd5 {[%clk 0:02:43]}  Ne7 {[%clk 0:02:14]} 16. O-O-O {[%clk 0:02:38]}  Nxd5 {[%clk 0:02:14]} 17. Rxd5 {[%clk 0:02:38]}  Qe7 {[%clk 0:02:14]} 18. Bh3 {[%clk 0:02:31]}  Rfd8 {[%clk 0:02:08]} 19. Rhd1 {[%clk 0:02:31]}  Rxd5 {[%clk 0:02:09]} 20. Qxd5 {[%clk 0:02:29]}  c6 {[%clk 0:02:06]} 21. Qd7 {[%clk 0:02:27]}  Kf8 {[%clk 0:02:05]} 22. Qxe7+ {[%clk 0:02:25]}  Kxe7 {[%clk 0:02:03]} 23. Rd7+ {[%clk 0:02:25]}  Ke8 {[%clk 0:01:56]} 24. Rxb7 {[%clk 0:02:26]}  Bf8 {[%clk 0:01:56]} 25. Bd7+ {[%clk 0:02:24]}  Kd8 {[%clk 0:01:56]} 26. Kd2 {[%clk 0:02:17]}  Be7 {[%clk 0:01:54]} 27. Bxc6 {[%clk 0:02:16]}  Rc8 {[%clk 0:01:46]} 28. Rd7+ {[%clk 0:02:02]}  Ke8 {[%clk 0:01:45]} 29. Rc7+ {[%clk 0:02:02]}  Kd8 {[%clk 0:01:46]} 30. Rxc8+ {[%clk 0:02:03]}  Kxc8 {[%clk 0:01:46]} 31. Be8 {[%clk 0:02:03]}  f6 {[%clk 0:01:45]} 32. exf6 {[%clk 0:02:01]}  Bxf6 {[%clk 0:01:44]} 33. Bxg6 {[%clk 0:02:02]}  Bxb2 {[%clk 0:01:44]} 34. Bxh5 {[%clk 0:02:02]}  Bf6 {[%clk 0:01:45]} 35. Bg4+ {[%clk 0:02:02]} 1-0


[Site "https://www.chess.com"]

[Event "Titled Tuesday Blitz August 10 2021"]
[White "Iskusnyh, Sergei"]
[Black "Kezin, Roman"]
[WhiteFideId "4120027"]
[BlackFideId "24124621"]
[WhiteElo "2492"]
[BlackElo "2570"]
[Result "0-1"]
[Round "09"]
[TimeControl "180+1"]
[Date "2021.08.10"]
[WhiteClock "0:00:13"]
[BlackClock "0:00:35"]

1. d4 {[%clk 0:02:42]}  d5 {[%clk 0:02:59]} 2. c4 {[%clk 0:02:42]}  e6 {[%clk 0:03:00]} 3. Nf3 {[%clk 0:02:41]}  Nf6 {[%clk 0:03:00]} 4. g3 {[%clk 0:02:41]}  Be7 {[%clk 0:02:57]} 5. Bg2 {[%clk 0:02:41]}  O-O {[%clk 0:02:57]} 6. O-O {[%clk 0:02:42]}  dxc4 {[%clk 0:02:57]} 7. Qa4 {[%clk 0:02:42]}  a6 {[%clk 0:02:56]} 8. Qxc4 {[%clk 0:02:42]}  b5 {[%clk 0:02:56]} 9. Qc2 {[%clk 0:02:43]}  Bb7 {[%clk 0:02:56]} 10. Bd2 {[%clk 0:02:43]}  Ra7 {[%clk 0:02:55]} 11. Rc1 {[%clk 0:02:31]}  Be4 {[%clk 0:02:54]} 12. Qd1 {[%clk 0:02:30]}  Bxf3 {[%clk 0:02:50]} 13. Bxf3 {[%clk 0:02:27]}  Qxd4 {[%clk 0:02:50]} 14. Nc3 {[%clk 0:02:10]}  c5 {[%clk 0:02:47]} 15. Be3 {[%clk 0:02:03]}  Qxd1+ {[%clk 0:02:39]} 16. Rxd1 {[%clk 0:02:04]}  Nbd7 {[%clk 0:02:31]} 17. Rac1 {[%clk 0:01:32]}  Rc8 {[%clk 0:02:01]} 18. g4 {[%clk 0:01:12]}  Ne5 {[%clk 0:01:57]} 19. Kg2 {[%clk 0:01:05]}  Nfxg4 {[%clk 0:01:15]} 20. Bf4 {[%clk 0:00:58]}  Ng6 {[%clk 0:01:15]} 21. Bg3 {[%clk 0:00:42]}  N4e5 {[%clk 0:01:11]} 22. Be4 {[%clk 0:00:38]}  f5 {[%clk 0:01:10]} 23. Bb1 {[%clk 0:00:36]}  f4 {[%clk 0:01:09]} 24. Ne4 {[%clk 0:00:26]}  fxg3 {[%clk 0:01:09]} 25. hxg3 {[%clk 0:00:26]}  Rd7 {[%clk 0:01:01]} 26. f4 {[%clk 0:00:19]}  Rxd1 {[%clk 0:00:59]} 27. Rxd1 {[%clk 0:00:20]}  Nc6 {[%clk 0:00:59]} 28. Rd7 {[%clk 0:00:19]}  Nf8 {[%clk 0:00:58]} 29. Rb7 {[%clk 0:00:19]}  Bf6 {[%clk 0:00:44]} 30. b3 {[%clk 0:00:18]}  c4 {[%clk 0:00:40]} 31. bxc4 {[%clk 0:00:18]}  bxc4 {[%clk 0:00:41]} 32. g4 {[%clk 0:00:18]}  Rb8 {[%clk 0:00:40]} 33. Rc7 {[%clk 0:00:15]}  Nd4 {[%clk 0:00:38]} 34. Nxf6+ {[%clk 0:00:13]}  gxf6 {[%clk 0:00:39]} 35. Be4 {[%clk 0:00:13]}  Nxe2 {[%clk 0:00:36]} 36. Rxc4 {[%clk 0:00:12]}  Nxf4+ {[%clk 0:00:36]} 37. Kf3 {[%clk 0:00:13]}  N4g6 {[%clk 0:00:35]} 0-1


[Site "https://www.chess.com"]

[Event "Titled Tuesday Blitz August 10 2021"]
[White "Khusnutdinov, Rustam"]
[Black "Kaasen, Tor Fredrik"]
[WhiteFideId "13701703"]
[BlackFideId "1516647"]
[WhiteElo "2571"]
[BlackElo "2349"]
[Result "1-0"]
[Round "09"]
[TimeControl "180+1"]
[Date "2021.08.10"]
[WhiteClock "0:01:07"]
[BlackClock "0:01:01"]

1. e4 {[%clk 0:03:00]}  c5 {[%clk 0:02:59]} 2. Nf3 {[%clk 0:02:58]}  e6 {[%clk 0:03:00]} 3. g3 {[%clk 0:02:58]}  Nc6 {[%clk 0:02:59]} 4. Bg2 {[%clk 0:02:56]}  Nf6 {[%clk 0:02:59]} 5. Qe2 {[%clk 0:02:56]}  Be7 {[%clk 0:02:57]} 6. O-O {[%clk 0:02:55]}  d6 {[%clk 0:02:53]} 7. c3 {[%clk 0:02:54]}  O-O {[%clk 0:02:54]} 8. d4 {[%clk 0:02:54]}  cxd4 {[%clk 0:02:51]} 9. cxd4 {[%clk 0:02:55]}  d5 {[%clk 0:02:52]} 10. e5 {[%clk 0:02:55]}  Ne4 {[%clk 0:02:53]} 11. Rd1 {[%clk 0:02:56]}  Bd7 {[%clk 0:02:51]} 12. Ne1 {[%clk 0:02:55]}  f5 {[%clk 0:02:52]} 13. f3 {[%clk 0:02:51]}  Ng5 {[%clk 0:02:52]} 14. Nc3 {[%clk 0:02:52]}  Rc8 {[%clk 0:02:51]} 15. Be3 {[%clk 0:02:51]}  a6 {[%clk 0:02:51]} 16. Nd3 {[%clk 0:02:50]}  Nf7 {[%clk 0:02:48]} 17. f4 {[%clk 0:02:50]}  Na5 {[%clk 0:02:47]} 18. Bf2 {[%clk 0:02:48]}  Nc4 {[%clk 0:02:44]} 19. Rac1 {[%clk 0:02:43]}  Qa5 {[%clk 0:02:44]} 20. Nc5 {[%clk 0:02:42]}  Bxc5 {[%clk 0:02:35]} 21. dxc5 {[%clk 0:02:43]}  Rxc5 {[%clk 0:02:34]} 22. b3 {[%clk 0:02:27]}  Rfc8 {[%clk 0:02:11]} 23. Nxd5 {[%clk 0:01:29]}  exd5 {[%clk 0:01:46]} 24. bxc4 {[%clk 0:01:13]}  Be6 {[%clk 0:01:28]} 25. Bxc5 {[%clk 0:01:08]}  Qxc5+ {[%clk 0:01:28]} 26. Qf2 {[%clk 0:01:09]}  Qxf2+ {[%clk 0:01:23]} 27. Kxf2 {[%clk 0:01:10]}  dxc4 {[%clk 0:01:23]} 28. Bxb7 {[%clk 0:01:09]}  Rb8 {[%clk 0:01:23]} 29. Bd5 {[%clk 0:01:08]}  Rb2+ {[%clk 0:01:23]} 30. Ke3 {[%clk 0:01:09]}  Bxd5 {[%clk 0:01:08]} 31. Rxd5 {[%clk 0:01:10]}  Kf8 {[%clk 0:01:05]} 32. Rxc4 {[%clk 0:01:10]}  Rxa2 {[%clk 0:01:01]} 33. Rd7 {[%clk 0:01:07]} 1-0


[Site "https://www.chess.com"]

[Event "Titled Tuesday Blitz August 10 2021"]
[White "Le, Tuan Minh"]
[Black "Lashkin, Jegor"]
[WhiteFideId "12401153"]
[BlackFideId "13907808"]
[WhiteElo "2450"]
[BlackElo "2293"]
[Result "1-0"]
[Round "09"]
[TimeControl "180+1"]
[Date "2021.08.10"]
[WhiteClock "0:00:11"]
[BlackClock "0:00:03"]

1. d4 {[%clk 0:03:00]}  Nf6 {[%clk 0:02:57]} 2. Nf3 {[%clk 0:03:01]}  d5 {[%clk 0:02:57]} 3. Bg5 {[%clk 0:03:01]}  Ne4 {[%clk 0:02:51]} 4. Bf4 {[%clk 0:03:01]}  c5 {[%clk 0:02:50]} 5. c3 {[%clk 0:03:01]}  Nc6 {[%clk 0:02:50]} 6. e3 {[%clk 0:03:01]}  Bf5 {[%clk 0:02:49]} 7. Qb3 {[%clk 0:03:00]}  Bc8 {[%clk 0:02:22]} 8. Nbd2 {[%clk 0:02:49]}  Nxd2 {[%clk 0:02:21]} 9. Nxd2 {[%clk 0:02:50]}  e6 {[%clk 0:02:20]} 10. Be2 {[%clk 0:02:48]}  Be7 {[%clk 0:02:20]} 11. O-O {[%clk 0:02:48]}  O-O {[%clk 0:02:20]} 12. Rad1 {[%clk 0:02:46]}  b6 {[%clk 0:02:16]} 13. Rfe1 {[%clk 0:02:39]}  Bd6 {[%clk 0:02:12]} 14. Bxd6 {[%clk 0:02:32]}  Qxd6 {[%clk 0:02:13]} 15. Qa3 {[%clk 0:02:32]}  Qe7 {[%clk 0:01:45]} 16. Bb5 {[%clk 0:02:21]}  Na5 {[%clk 0:01:42]} 17. e4 {[%clk 0:02:14]}  Bb7 {[%clk 0:01:36]} 18. exd5 {[%clk 0:02:09]}  Bxd5 {[%clk 0:01:36]} 19. c4 {[%clk 0:02:00]}  Bc6 {[%clk 0:01:24]} 20. dxc5 {[%clk 0:01:12]}  Bxb5 {[%clk 0:01:20]} 21. cxb5 {[%clk 0:01:13]}  Qxc5 {[%clk 0:01:16]} 22. Qxc5 {[%clk 0:01:13]}  bxc5 {[%clk 0:01:16]} 23. Ne4 {[%clk 0:01:14]}  Rfc8 {[%clk 0:01:00]} 24. Rd7 {[%clk 0:01:11]}  Nc4 {[%clk 0:00:57]} 25. b3 {[%clk 0:01:05]}  Nb6 {[%clk 0:00:52]} 26. Rb7 {[%clk 0:01:02]}  Nd5 {[%clk 0:00:37]} 27. Rc1 {[%clk 0:01:01]}  f5 {[%clk 0:00:18]} 28. Ng5 {[%clk 0:00:49]}  Nf4 {[%clk 0:00:15]} 29. Rc4 {[%clk 0:00:48]}  h6 {[%clk 0:00:13]} 30. Rxf4 {[%clk 0:00:25]}  hxg5 {[%clk 0:00:13]} 31. Ra4 {[%clk 0:00:26]}  Rd8 {[%clk 0:00:10]} 32. g3 {[%clk 0:00:26]}  Rdb8 {[%clk 0:00:07]} 33. Raxa7 {[%clk 0:00:21]}  Rxb7 {[%clk 0:00:06]} 34. Rxa8+ {[%clk 0:00:22]}  Kf7 {[%clk 0:00:06]} 35. a4 {[%clk 0:00:22]}  Kf6 {[%clk 0:00:05]} 36. Rc8 {[%clk 0:00:21]}  Ke5 {[%clk 0:00:03]} 37. Rxc5+ {[%clk 0:00:21]}  Kd4 {[%clk 0:00:03]} 38. Rc4+ {[%clk 0:00:18]}  Kd5 {[%clk 0:00:04]} 39. f4 {[%clk 0:00:09]}  gxf4 {[%clk 0:00:04]} 40. gxf4 {[%clk 0:00:10]}  g5 {[%clk 0:00:04]} 41. fxg5 {[%clk 0:00:11]}  e5 {[%clk 0:00:04]} 42. g6 {[%clk 0:00:11]}  e4 {[%clk 0:00:05]} 43. h4 {[%clk 0:00:10]}  f4 {[%clk 0:00:05]} 44. h5 {[%clk 0:00:11]}  Rg7 {[%clk 0:00:05]} 45. b6 {[%clk 0:00:11]}  e3 {[%clk 0:00:05]} 46. Kg2 {[%clk 0:00:11]}  Ke5 {[%clk 0:00:04]} 47. Kf3 {[%clk 0:00:11]}  Rd7 {[%clk 0:00:04]} 48. Re4+ {[%clk 0:00:11]}  Kd5 {[%clk 0:00:03]} 49. Rxf4 {[%clk 0:00:11]}  Re7 {[%clk 0:00:03]} 50. Ke2 {[%clk 0:00:11]} 1-0


[Site "https://www.chess.com"]

[Event "Titled Tuesday Blitz August 10 2021"]
[White "Maiorov, Nikita"]
[Black "Quispe Arteaga, Gabriel"]
[WhiteFideId "13501720"]
[BlackFideId "32059809"]
[WhiteElo "2440"]
[BlackElo "2172"]
[Result "0-1"]
[Round "09"]
[TimeControl "180+1"]
[Date "2021.08.10"]
[WhiteClock "0:00:43"]
[BlackClock "0:00:48"]

1. d4 {[%clk 0:03:00]}  Nf6 {[%clk 0:02:59]} 2. c4 {[%clk 0:03:00]}  e6 {[%clk 0:03:00]} 3. Nf3 {[%clk 0:02:59]}  b6 {[%clk 0:02:59]} 4. g3 {[%clk 0:02:58]}  Bb7 {[%clk 0:02:57]} 5. Bg2 {[%clk 0:02:57]}  Bb4+ {[%clk 0:02:57]} 6. Bd2 {[%clk 0:02:56]}  Qe7 {[%clk 0:02:54]} 7. O-O {[%clk 0:02:56]}  O-O {[%clk 0:02:54]} 8. Bc1 {[%clk 0:02:52]}  d5 {[%clk 0:02:52]} 9. cxd5 {[%clk 0:02:49]}  exd5 {[%clk 0:02:51]} 10. Nc3 {[%clk 0:02:48]}  Re8 {[%clk 0:02:47]} 11. Bf4 {[%clk 0:02:22]}  Na6 {[%clk 0:02:40]} 12. Be5 {[%clk 0:02:13]}  Nd7 {[%clk 0:02:36]} 13. a3 {[%clk 0:02:10]}  Bxc3 {[%clk 0:02:05]} 14. bxc3 {[%clk 0:02:09]}  f6 {[%clk 0:02:05]} 15. Bf4 {[%clk 0:02:08]}  Qxe2 {[%clk 0:02:06]} 16. Qa4 {[%clk 0:02:05]}  c6 {[%clk 0:02:04]} 17. Rfe1 {[%clk 0:02:03]}  Qd3 {[%clk 0:01:53]} 18. Bh3 {[%clk 0:01:57]}  Nf8 {[%clk 0:01:48]} 19. Nh4 {[%clk 0:01:35]}  Qxc3 {[%clk 0:01:31]} 20. Nf5 {[%clk 0:01:33]}  Rxe1+ {[%clk 0:01:29]} 21. Rxe1 {[%clk 0:01:16]}  Qxe1+ {[%clk 0:01:28]} 22. Kg2 {[%clk 0:01:15]}  Qe4+ {[%clk 0:01:21]} 23. Kg1 {[%clk 0:01:13]}  Nc5 {[%clk 0:01:01]} 24. Qd1 {[%clk 0:01:08]}  Nd3 {[%clk 0:01:01]} 25. Nd6 {[%clk 0:01:03]}  Qe1+ {[%clk 0:00:57]} 26. Qxe1 {[%clk 0:01:02]}  Nxe1 {[%clk 0:00:58]} 27. Nxb7 {[%clk 0:01:02]}  Nf3+ {[%clk 0:00:54]} 28. Kg2 {[%clk 0:01:00]}  Nxd4 {[%clk 0:00:53]} 29. Be3 {[%clk 0:00:53]}  Nde6 {[%clk 0:00:52]} 30. Nd6 {[%clk 0:00:52]}  g6 {[%clk 0:00:51]} 31. f4 {[%clk 0:00:49]}  Rd8 {[%clk 0:00:49]} 32. Nb7 {[%clk 0:00:43]}  Rd7 {[%clk 0:00:48]} 33. f5 {[%clk 0:00:43]}  gxf5 {[%clk 0:00:48]} 0-1


[Site "https://www.chess.com"]

[Event "Titled Tuesday Blitz August 10 2021"]
[White "Nagy, Gabor"]
[Black "Bluebaum, Matthias"]
[WhiteFideId "737119"]
[BlackFideId "24651516"]
[WhiteElo "2562"]
[BlackElo "2685"]
[Result "0-1"]
[Round "09"]
[TimeControl "180+1"]
[Date "2021.08.10"]
[WhiteClock "0:00:35"]
[BlackClock "0:00:39"]

1. c4 {[%clk 0:03:00]}  c6 {[%clk 0:02:58]} 2. Nf3 {[%clk 0:02:58]}  d5 {[%clk 0:02:59]} 3. g3 {[%clk 0:02:59]}  dxc4 {[%clk 0:02:57]} 4. Bg2 {[%clk 0:02:59]}  Nd7 {[%clk 0:02:58]} 5. O-O {[%clk 0:02:59]}  Nb6 {[%clk 0:02:58]} 6. Na3 {[%clk 0:02:57]}  g6 {[%clk 0:02:53]} 7. Qc2 {[%clk 0:02:55]}  Be6 {[%clk 0:02:54]} 8. Ng5 {[%clk 0:02:47]}  Qd7 {[%clk 0:02:50]} 9. Nxe6 {[%clk 0:02:43]}  Qxe6 {[%clk 0:02:51]} 10. b3 {[%clk 0:02:43]}  Bg7 {[%clk 0:02:52]} 11. Rb1 {[%clk 0:02:36]}  cxb3 {[%clk 0:02:52]} 12. Rxb3 {[%clk 0:02:31]}  Nf6 {[%clk 0:02:52]} 13. Bb2 {[%clk 0:02:26]}  O-O {[%clk 0:02:52]} 14. Rb1 {[%clk 0:02:25]}  Rfd8 {[%clk 0:02:48]} 15. d3 {[%clk 0:02:23]}  Nfd7 {[%clk 0:02:45]} 16. Bxg7 {[%clk 0:02:07]}  Kxg7 {[%clk 0:02:46]} 17. Qc1 {[%clk 0:02:04]}  Qf6 {[%clk 0:02:45]} 18. Nc2 {[%clk 0:02:01]}  Nc5 {[%clk 0:02:42]} 19. Rb4 {[%clk 0:01:56]}  Nba4 {[%clk 0:02:28]} 20. Ne3 {[%clk 0:01:52]}  Nc3 {[%clk 0:02:24]} 21. R1b2 {[%clk 0:01:47]}  Nxe2+ {[%clk 0:02:13]} 22. Rxe2 {[%clk 0:01:45]}  Nxd3 {[%clk 0:02:13]} 23. Qb1 {[%clk 0:01:41]}  Nxb4 {[%clk 0:02:13]} 24. Qxb4 {[%clk 0:01:42]}  Rd7 {[%clk 0:02:13]} 25. h4 {[%clk 0:01:40]}  h5 {[%clk 0:02:13]} 26. Nc4 {[%clk 0:01:38]}  Rad8 {[%clk 0:02:08]} 27. Ne5 {[%clk 0:01:37]}  Rd1+ {[%clk 0:02:06]} 28. Kh2 {[%clk 0:01:37]}  R8d4 {[%clk 0:01:22]} 29. Qxb7 {[%clk 0:01:30]}  R4d2 {[%clk 0:01:22]} 30. Rxd2 {[%clk 0:01:09]}  Rxd2 {[%clk 0:01:23]} 31. f4 {[%clk 0:01:10]}  Rxa2 {[%clk 0:01:16]} 32. Nxc6 {[%clk 0:01:09]}  Rb2 {[%clk 0:01:12]} 33. Qa6 {[%clk 0:01:01]}  Qc3 {[%clk 0:01:02]} 34. Ne5 {[%clk 0:00:51]}  Qc2 {[%clk 0:00:46]} 35. Qf1 {[%clk 0:00:50]}  e6 {[%clk 0:00:45]} 36. Nf3 {[%clk 0:00:46]}  a5 {[%clk 0:00:43]} 37. Nd4 {[%clk 0:00:44]}  Qf2 {[%clk 0:00:40]} 38. Qh1 {[%clk 0:00:35]}  Qxd4 {[%clk 0:00:39]} 0-1


[Site "https://www.chess.com"]

[Event "Titled Tuesday Blitz August 10 2021"]
[White "Nakamura, Hikaru"]
[Black "Bok, Benjamin"]
[WhiteFideId "2016192"]
[BlackFideId "1017063"]
[WhiteElo "2900"]
[BlackElo "2658"]
[Result "1-0"]
[Round "09"]
[TimeControl "180+1"]
[Date "2021.08.10"]
[WhiteClock "0:00:19"]
[BlackClock "0:00:01"]

1. e4 {[%clk 0:03:00]}  c5 {[%clk 0:02:59]} 2. Nf3 {[%clk 0:03:00]}  d6 {[%clk 0:03:00]} 3. d4 {[%clk 0:03:00]}  cxd4 {[%clk 0:03:01]} 4. Qxd4 {[%clk 0:03:00]}  Nf6 {[%clk 0:03:01]} 5. Nc3 {[%clk 0:02:59]}  Nc6 {[%clk 0:03:02]} 6. Bb5 {[%clk 0:02:58]}  Bd7 {[%clk 0:03:02]} 7. Bxc6 {[%clk 0:02:58]}  Bxc6 {[%clk 0:03:03]} 8. Bg5 {[%clk 0:02:58]}  e6 {[%clk 0:03:04]} 9. O-O-O {[%clk 0:02:59]}  Be7 {[%clk 0:03:04]} 10. Qd3 {[%clk 0:02:59]}  Qa5 {[%clk 0:02:59]} 11. h4 {[%clk 0:02:59]}  h6 {[%clk 0:02:58]} 12. Be3 {[%clk 0:02:58]}  d5 {[%clk 0:02:37]} 13. Nd4 {[%clk 0:02:49]}  dxe4 {[%clk 0:02:16]} 14. Nxc6 {[%clk 0:02:47]}  bxc6 {[%clk 0:02:16]} 15. Nxe4 {[%clk 0:02:05]}  Qxa2 {[%clk 0:02:06]} 16. Nxf6+ {[%clk 0:02:04]}  Bxf6 {[%clk 0:02:07]} 17. Qd7+ {[%clk 0:02:04]}  Kf8 {[%clk 0:02:07]} 18. Qb7 {[%clk 0:01:59]}  Re8 {[%clk 0:01:42]} 19. c3 {[%clk 0:01:58]}  Kg8 {[%clk 0:00:49]} 20. Qxa7 {[%clk 0:01:51]}  Qc4 {[%clk 0:00:48]} 21. h5 {[%clk 0:01:26]}  Bxc3 {[%clk 0:00:34]} 22. Kb1 {[%clk 0:00:42]}  Qe4+ {[%clk 0:00:19]} 23. Kc1 {[%clk 0:00:40]}  Bf6 {[%clk 0:00:16]} 24. f3 {[%clk 0:00:29]}  Qc4+ {[%clk 0:00:15]} 25. Kb1 {[%clk 0:00:29]}  Qb3 {[%clk 0:00:12]} 26. Bd4 {[%clk 0:00:25]}  e5 {[%clk 0:00:06]} 27. Bc3 {[%clk 0:00:23]}  Kh7 {[%clk 0:00:06]} 28. Qd7 {[%clk 0:00:21]}  Re7 {[%clk 0:00:01]} 29. Qf5+ {[%clk 0:00:21]}  g6 {[%clk 0:00:01]} 30. Qxf6 {[%clk 0:00:19]}  Rb7 {[%clk 0:00:01]} 31. hxg6+ {[%clk 0:00:19]} 1-0


[Site "https://www.chess.com"]

[Event "Titled Tuesday Blitz August 10 2021"]
[White "Quintiliano Pinto, Renato R."]
[Black "Ivanisevic, Ivan"]
[WhiteFideId "2117568"]
[BlackFideId "912417"]
[WhiteElo "2439"]
[BlackElo "2499"]
[Result "1-0"]
[Round "09"]
[TimeControl "180+1"]
[Date "2021.08.10"]
[WhiteClock "0:00:16"]
[BlackClock "0:00:57"]

1. d4 {[%clk 0:03:00]}  Nf6 {[%clk 0:02:59]} 2. c4 {[%clk 0:03:00]}  e6 {[%clk 0:02:59]} 3. Nf3 {[%clk 0:03:00]}  d5 {[%clk 0:02:59]} 4. Nc3 {[%clk 0:03:00]}  Nbd7 {[%clk 0:02:58]} 5. Bf4 {[%clk 0:02:59]}  dxc4 {[%clk 0:02:56]} 6. e3 {[%clk 0:02:58]}  Nb6 {[%clk 0:02:52]} 7. Bxc4 {[%clk 0:02:57]}  Nxc4 {[%clk 0:02:53]} 8. Qa4+ {[%clk 0:02:56]}  c6 {[%clk 0:02:54]} 9. Qxc4 {[%clk 0:02:56]}  Nd5 {[%clk 0:02:48]} 10. O-O {[%clk 0:02:43]}  Nxf4 {[%clk 0:02:47]} 11. exf4 {[%clk 0:02:44]}  Be7 {[%clk 0:02:47]} 12. Rfe1 {[%clk 0:02:42]}  O-O {[%clk 0:02:48]} 13. Rad1 {[%clk 0:02:41]}  Bd7 {[%clk 0:02:42]} 14. Ne4 {[%clk 0:02:37]}  Be8 {[%clk 0:02:40]} 15. Nc5 {[%clk 0:02:28]}  b6 {[%clk 0:02:17]} 16. Nd3 {[%clk 0:02:09]}  Rc8 {[%clk 0:02:14]} 17. Qb3 {[%clk 0:01:56]}  Rc7 {[%clk 0:02:13]} 18. Nde5 {[%clk 0:01:44]}  Bd6 {[%clk 0:02:13]} 19. g3 {[%clk 0:01:33]}  g6 {[%clk 0:02:10]} 20. Qe3 {[%clk 0:01:30]}  Kg7 {[%clk 0:02:09]} 21. h4 {[%clk 0:01:28]}  Bb4 {[%clk 0:02:03]} 22. Re2 {[%clk 0:01:25]}  Qd5 {[%clk 0:02:02]} 23. a3 {[%clk 0:01:15]}  Be7 {[%clk 0:02:01]} 24. Red2 {[%clk 0:01:10]}  f6 {[%clk 0:01:55]} 25. Ng4 {[%clk 0:01:04]}  h5 {[%clk 0:01:54]} 26. Ngh2 {[%clk 0:01:03]}  Bf7 {[%clk 0:01:54]} 27. Nf1 {[%clk 0:01:02]}  Rd8 {[%clk 0:01:51]} 28. Kg2 {[%clk 0:01:00]}  Rcd7 {[%clk 0:01:50]} 29. Qe2 {[%clk 0:00:53]}  Qd6 {[%clk 0:01:42]} 30. Ne3 {[%clk 0:00:51]}  Qc7 {[%clk 0:01:42]} 31. Rc2 {[%clk 0:00:49]}  Qb7 {[%clk 0:01:40]} 32. b4 {[%clk 0:00:41]}  a5 {[%clk 0:01:39]} 33. bxa5 {[%clk 0:00:35]}  bxa5 {[%clk 0:01:40]} 34. Rc3 {[%clk 0:00:29]}  Qb5 {[%clk 0:01:29]} 35. Qc2 {[%clk 0:00:24]}  c5 {[%clk 0:01:27]} 36. dxc5 {[%clk 0:00:24]}  Rxd1 {[%clk 0:01:27]} 37. Nxd1 {[%clk 0:00:23]}  Rc8 {[%clk 0:01:23]} 38. c6 {[%clk 0:00:20]}  Be8 {[%clk 0:01:23]} 39. c7 {[%clk 0:00:19]}  Bd6 {[%clk 0:01:21]} 40. Ne3 {[%clk 0:00:18]}  Qb7 {[%clk 0:01:20]} 41. Nc4 {[%clk 0:00:17]}  Be7 {[%clk 0:01:15]} 42. Nxa5 {[%clk 0:00:17]}  Qa8 {[%clk 0:01:15]} 43. Nc6 {[%clk 0:00:17]}  Bf8 {[%clk 0:01:13]} 44. Ncd4 {[%clk 0:00:17]}  Bf7 {[%clk 0:01:12]} 45. Rc6 {[%clk 0:00:16]}  e5 {[%clk 0:01:09]} 46. fxe5 {[%clk 0:00:16]}  fxe5 {[%clk 0:01:09]} 47. Nxe5 {[%clk 0:00:16]}  Bd5+ {[%clk 0:01:09]} 48. Kh2 {[%clk 0:00:16]}  Bxc6 {[%clk 0:00:57]} 49. Qxg6+ {[%clk 0:00:16]} 1-0


[Site "https://www.chess.com"]